bitfinex-derivatives/quotes_BTCF0:USTF0_20251119
["timestamp","ask_amount","ask_price","bid_price","bid_amount"]
[1763576628399,0.06329833,89254.0,89253.0,0.04728072]
[1763576629309,0.23304123,89254.0,89253.0,0.00011269]
[1763576629498,0.27884123,89254.0,89253.0,0.00219803]
[1763576629804,0.06329833,89254.0,89253.0,0.15930213]
[1763576630010,7.93e-05,89254.0,89253.0,0.04716803]
[1763576630210,0.11021317,89254.0,89253.0,0.04716803]
[1763576630601,0.06580317,89254.0,89253.0,0.04716803]
[1763576630906,0.11021317,89254.0,89253.0,0.04716803]
[1763576631097,0.06580317,89254.0,89253.0,0.04716803]
[1763576632910,0.17793607,89254.0,89253.0,0.04716803]
[1763576633206,0.06580317,89254.0,89253.0,0.04716803]
[1763576633411,0.17793607,89254.0,89253.0,0.04716803]
[1763576633602,0.06580317,89254.0,89253.0,0.04716803]
[1763576634402,0.11021317,89254.0,89253.0,0.00219803]
[1763576635308,0.11021317,89254.0,89253.0,0.04716803]
[1763576635508,0.08844317,89254.0,89253.0,0.04716803]
[1763576636105,0.11021317,89254.0,89253.0,0.04716803]
[1763576636305,0.11021317,89254.0,89253.0,0.00219803]
[1763576636509,0.08844317,89254.0,89253.0,0.04716803]
[1763576637011,0.06580317,89254.0,89253.0,0.04716803]
[1763576641513,0.1121146,89269.0,89268.0,0.04383]
[1763576641725,0.1575146,89269.0,89268.0,0.04602803]
[1763576642715,0.1121304,89256.0,89248.0,0.1121394]
[1763576643016,0.0454,89256.0,89255.0,0.0442]
[1763576643211,0.0454,89256.0,89255.0,0.04639803]
[1763576644407,0.1575304,89256.0,89255.0,0.04639803]
[1763576644818,0.0454,89256.0,89255.0,0.04639803]
[1763576645516,0.0454,89256.0,89255.0,0.00219803]
[1763576645905,0.0454,89256.0,89255.0,0.04639803]
[1763576646615,0.0454,89256.0,89255.0,0.00219803]
[1763576647213,0.1575417,89247.0,89246.0,0.00028013]
[1763576647414,0.1575668,89227.0,89226.0,0.04012105]
[1763576647617,0.0454,89223.0,89222.0,0.02202]
[1763576647822,0.0454,89223.0,89222.0,0.04639803]
[1763576648011,0.00301466,89229.0,89228.0,0.0442]
[1763576648211,0.00016803,89235.0,89234.0,0.0442]
[1763576648416,0.15772473,89235.0,89234.0,0.00219803]
[1763576648611,0.06465274,89235.0,89234.0,0.00219803]
[1763576648919,0.06465274,89235.0,89234.0,0.04639803]
[1763576649224,0.17680944,89235.0,89234.0,0.00219803]
[1763576649617,0.02295,89214.0,89213.0,0.06214105]
[1763576649818,0.02295,89214.0,89195.0,0.1122066]
[1763576649819,0.0454,89211.0,89190.0,0.10050202]
[1763576650023,0.26635555,89200.0,89187.0,0.08651673]
[1763576650217,0.1122061,89196.0,89188.0,0.00219803]
[1763576650412,0.03064758,89199.0,89194.0,0.01281]
[1763576650612,0.03064758,89199.0,89195.0,0.00219803]
[1763576650613,0.1122023,89199.0,89195.0,0.00219803]
[1763576650814,0.199,89209.0,89194.0,0.01281]
[1763576650815,0.1122053,89197.0,89194.0,0.01281]
[1763576651116,0.1122094,89194.0,89180.0,0.01281]
[1763576651323,0.1122197,89185.0,89181.0,0.00219803]
[1763576651518,0.00010629,89184.0,89183.0,0.04494]
[1763576651724,0.00010629,89184.0,89153.0,0.01252159]
[1763576651725,0.02020504,89184.0,89124.0,0.01281]
[1763576652018,0.13417843,89183.0,89180.0,0.01281]
[1763576652210,0.02513843,89182.0,89180.0,0.01281]
[1763576652519,0.10904,89183.0,89181.0,0.00219803]
[1763576652920,0.00010629,89184.0,89183.0,0.04494]
[1763576653120,0.00010629,89184.0,89183.0,0.04713803]
[1763576653314,0.07045859,89184.0,89183.0,0.04713803]
[1763576653722,0.07045859,89184.0,89180.0,0.01281]
[1763576653723,0.18267949,89184.0,89180.0,0.01281]
[1763576653918,0.07045859,89184.0,89180.0,0.01500803]
[1763576654618,0.07045859,89184.0,89183.0,0.04494]
[1763576654919,0.07045859,89184.0,89166.0,0.00028038]
[1763576655122,0.1122292,89178.0,89167.0,0.01281]
[1763576655321,0.0703523,89184.0,89168.0,0.26855358]
[1763576655515,0.00010629,89183.0,89182.0,0.04494]
[1763576655716,0.01117169,89183.0,89182.0,0.04713803]
[1763576656524,0.01117169,89183.0,89182.0,0.02421803]
[1763576656740,0.01117169,89183.0,89182.0,0.04713803]
[1763576657115,0.01117169,89183.0,89182.0,0.00219803]
[1763576657323,0.01117169,89183.0,89140.0,0.26635555]
[1763576657324,0.1122402,89169.0,89140.0,0.26635555]
[1763576657526,9.92e-05,89168.0,89136.0,0.112281]
[1763576657826,0.10912,89167.0,89166.0,0.00247841]
[1763576658023,0.10912,89167.0,89166.0,0.01528841]
[1763576658225,0.12119159,89167.0,89166.0,0.01528841]
[1763576658430,0.12119159,89167.0,89166.0,0.00028038]
[1763576659522,0.01207159,89167.0,89166.0,0.06022841]
[1763576660525,0.1122713,89144.0,89110.0,0.01281]
[1763576660717,0.10935979,89144.0,89138.0,0.01281]
[1763576660915,0.20789141,89144.0,89138.0,0.01281]
[1763576661521,0.20789141,89144.0,89143.0,0.00231069]
[1763576661824,0.09861141,89144.0,89143.0,0.04725069]
[1763576663020,0.00016824,89152.0,89151.0,0.04494]
[1763576663224,0.1122105,89193.0,89173.0,0.04494]
[1763576663422,0.1122131,89191.0,89174.0,0.00219803]
[1763576663624,0.1122172,89187.0,89180.0,0.01281]
[1763576663828,0.1122172,89187.0,89181.0,0.00219803]
[1763576664022,0.18063813,89190.0,89181.0,0.00219803]
[1763576664023,0.10928,89190.0,89181.0,0.00219803]
[1763576664330,0.1122211,89184.0,89181.0,0.00219803]
[1763576664528,0.06984939,89186.0,89183.0,0.02202]
[1763576664728,0.2214944,89190.0,89189.0,0.02202]
[1763576664729,0.10928,89190.0,89189.0,0.02202]
[1763576665030,0.10928,89190.0,89189.0,0.02421803]
[1763576665232,0.17208903,89190.0,89189.0,0.04713803]
[1763576665923,0.06280903,89190.0,89189.0,0.04713803]
[1763576666428,0.00150874,89193.0,89192.0,0.04462]
[1763576666628,0.00150874,89193.0,89190.0,0.0136]
[1763576666629,0.00016824,89194.0,89193.0,0.04681803]
[1763576667028,0.06046345,89194.0,89193.0,0.04681803]
[1763576667222,0.06046345,89194.0,89193.0,0.00219803]
[1763576667731,0.1122247,89181.0,89180.0,0.01281]
[1763576667930,0.1122247,89181.0,89180.0,0.01500803]
[1763576668131,0.12529935,89181.0,89180.0,0.01500803]
[1763576668445,0.01307465,89181.0,89180.0,0.01500803]
[1763576668630,0.01307465,89181.0,89180.0,0.03766803]
[1763576668828,0.1122112,89192.0,89190.0,0.0136]
[1763576669134,0.1122112,89192.0,89191.0,0.00219803]
[1763576669636,0.17451765,89192.0,89191.0,0.00219803]
[1763576669935,0.17451765,89192.0,89160.0,0.26635555]
[1763576669936,0.1122247,89181.0,89147.0,0.1122669]
[1763576670135,0.1122247,89181.0,89175.0,0.0136]
[1763576670335,0.00016824,89194.0,89177.0,0.00236627]
[1763576670336,0.1122272,89179.0,89177.0,0.00236627]
[1763576670731,0.00553236,89178.0,89177.0,0.00236627]
[1763576671133,0.00553236,89178.0,89177.0,0.04698627]
[1763576671436,0.18308247,89179.0,89178.0,0.02196]
[1763576671746,0.07085527,89179.0,89178.0,0.04681803]
[1763576672032,0.001,89192.0,89191.0,0.04492]
[1763576672331,0.1122079,89195.0,89193.0,0.04447]
[1763576672332,0.08972,89195.0,89193.0,0.04447]
[1763576672538,0.10932,89198.0,89193.0,0.04666803]
[1763576672731,0.08798208,89208.0,89193.0,0.04666803]
[1763576672732,0.10932,89200.0,89193.0,0.04666803]
[1763576673038,0.06046345,89194.0,89193.0,0.04666803]
[1763576673335,0.06046345,89194.0,89193.0,0.00219803]
[1763576673532,0.06146345,89194.0,89193.0,0.02445803]
[1763576673722,0.06146345,89194.0,89193.0,0.00219803]
[1763576674724,0.06246345,89194.0,89193.0,0.00219803]
[1763576675235,0.06246345,89194.0,89193.0,0.04666803]
[1763576676229,0.08938931,89194.0,89193.0,0.04666803]
[1763576678733,0.08838931,89194.0,89193.0,0.04666803]
[1763576679037,0.08938931,89194.0,89193.0,0.06064803]
[1763576679442,0.08738931,89194.0,89193.0,0.01617803]
[1763576679632,0.08738931,89194.0,89193.0,0.06064803]
[1763576680229,0.08738931,89194.0,89193.0,0.01398]
[1763576680536,0.08738931,89194.0,89177.0,0.04463824]
[1763576680537,0.1122284,89178.0,89177.0,0.04463824]
[1763576680736,0.02692586,89178.0,89177.0,0.04683627]
[1763576680930,0.15243822,89185.0,89184.0,0.04447]
[1763576681131,0.02705845,89185.0,89184.0,0.04666803]
[1763576681438,0.13662266,89185.0,89184.0,0.04666803]
[1763576681637,0.02705845,89185.0,89184.0,0.04666803]
[1763576682144,0.09640494,89185.0,89184.0,0.04666803]
[1763576682535,0.09740494,89185.0,89184.0,0.04666803]
[1763576682837,0.09840494,89185.0,89184.0,0.04666803]
[1763576683736,0.13862266,89185.0,89184.0,0.04666803]
[1763576684038,0.09840494,89185.0,89184.0,0.04666803]
[1763576684431,0.09840494,89185.0,89184.0,0.02440803]
[1763576685336,0.09840494,89185.0,89184.0,0.04666803]
[1763576686030,0.06340494,89185.0,89184.0,0.04666803]
[1763576686232,0.11237754,89194.0,89193.0,0.05845]
[1763576686437,0.11237754,89194.0,89193.0,0.06064803]
[1763576686637,0.00016824,89194.0,89193.0,0.06064803]
[1763576686838,0.04022288,89200.0,89198.0,0.1566733]
[1763576687027,0.04022288,89200.0,89199.0,0.04666803]
[1763576687234,0.04883421,89200.0,89199.0,0.04666803]
[1763576687539,0.112189,89210.0,89209.0,0.04447]
[1763576687840,0.112189,89210.0,89209.0,0.04666803]
[1763576688335,0.11345601,89210.0,89209.0,0.04666803]
[1763576688837,0.11445601,89210.0,89209.0,0.04666803]
[1763576689039,0.00226701,89210.0,89209.0,0.04666803]
[1763576689449,0.00326701,89210.0,89209.0,0.04666803]
[1763576690531,0.002,89210.0,89209.0,0.04666803]
[1763576690933,0.04178701,89210.0,89209.0,0.00219803]
[1763576691131,0.04178701,89210.0,89209.0,0.55810803]
[1763576692141,0.04178701,89210.0,89209.0,0.53589803]
[1763576692341,0.00326701,89210.0,89201.0,3e-08]
[1763576692550,0.10067136,89209.0,89201.0,3e-08]
[1763576692757,0.10067136,89208.0,89201.0,0.00219806]
[1763576692940,0.1092,89207.0,89201.0,3e-08]
[1763576693141,0.10519514,89208.0,89207.0,0.5782]
[1763576693344,0.1092,89208.0,89207.0,0.5782]
[1763576693653,0.11247752,89208.0,89207.0,0.58039803]
[1763576693951,0.11251752,89208.0,89207.0,0.58039803]
[1763576694761,0.00427752,89208.0,89207.0,0.58039803]
[1763576694957,0.11347752,89208.0,89207.0,0.60260803]
[1763576695157,0.11447752,89208.0,89207.0,0.60260803]
[1763576695652,0.11347752,89208.0,89207.0,0.58039803]
[1763576695853,0.11447752,89208.0,89207.0,0.62486803]
[1763576696165,0.00527752,89208.0,89207.0,0.62486803]
[1763576697056,0.06471235,89208.0,89207.0,0.62486803]
[1763576697361,0.06571235,89208.0,89207.0,0.62486803]
[1763576697566,0.00527752,89208.0,89207.0,0.62486803]
[1763576698066,0.03200925,89208.0,89207.0,0.62486803]
[1763576698262,0.1092,89212.0,89207.0,0.62486803]
[1763576698573,0.001,89208.0,89207.0,0.62486803]
[1763576699560,0.001,89208.0,89207.0,0.58039803]
[1763576702076,0.001,89212.0,89208.0,0.01398]
[1763576702277,0.001,89212.0,89211.0,0.04265]
[1763576702462,0.001,89212.0,89211.0,0.04484803]
[1763576702664,0.00016814,89218.0,89217.0,0.04265]
[1763576702873,0.10932814,89218.0,89217.0,0.04484803]
[1763576703970,0.11032814,89218.0,89217.0,0.04484803]
[1763576704379,0.11032814,89218.0,89217.0,0.02383803]
[1763576704679,0.11032814,89218.0,89217.0,0.04484803]
[1763576704869,0.10932814,89218.0,89217.0,0.04484803]
[1763576705066,0.10932814,89218.0,89208.0,0.01398]
[1763576705270,0.10932814,89218.0,89208.0,0.01617803]
[1763576705271,0.06045683,89211.0,89208.0,0.01617803]
[1763576705465,0.08058311,89217.0,89207.0,0.5782]
[1763576705677,0.08058311,89214.0,89207.0,0.5782]
[1763576705864,0.08058311,89210.0,89207.0,0.58039803]
[1763576706069,0.08058311,89209.0,89207.0,0.5220132]
[1763576706270,0.21244107,89217.0,89207.0,0.5107759]
[1763576706463,0.10072083,89212.0,89207.0,0.5107759]
[1763576706667,0.10072083,89211.0,89207.0,0.51297393]
[1763576707272,0.001,89209.0,89207.0,0.51297393]
[1763576707472,0.001,89209.0,89207.0,0.45233312]
[1763576707864,0.10072083,89213.0,89208.0,0.04265]
[1763576708078,0.10072083,89217.0,89212.0,0.00219803]
[1763576708276,0.10932814,89218.0,89207.0,0.45013509]
[1763576708468,0.21244107,89217.0,89212.0,0.00219803]
[1763576709369,0.21244107,89217.0,89207.0,0.45013509]
[1763576709370,0.21344107,89217.0,89207.0,0.45013509]
[1763576709570,0.08162377,89209.0,89208.0,0.00219803]
[1763576709770,0.08162377,89209.0,89208.0,0.02383803]
[1763576709970,0.001,89209.0,89208.0,0.04484803]
[1763576710378,0.02603611,89209.0,89208.0,0.04484803]
[1763576710774,0.02603611,89209.0,89208.0,0.00219803]
[1763576710978,0.02823414,89209.0,89207.0,0.44041572]
[1763576711280,0.08382733,89209.0,89207.0,0.43025672]
[1763576711472,0.10666541,89208.0,89201.0,3e-08]
[1763576711672,0.00219803,89202.0,89156.0,0.1122553]
[1763576711878,0.06047658,89187.0,89185.0,0.00073267]
[1763576712074,0.17179461,89186.0,89152.0,0.1122607]
[1763576712376,0.02603611,89185.0,89184.0,0.01471267]
[1763576712684,0.04432176,89185.0,89184.0,0.00073267]
[1763576712866,0.15344176,89185.0,89184.0,0.04338267]
[1763576713072,0.21390359,89185.0,89184.0,0.04338267]
[1763576713267,0.21390359,89185.0,89176.0,0.00016814]
[1763576713268,0.30157648,89185.0,89180.0,0.0129]
[1763576713478,0.02603611,89184.0,89181.0,0.00073267]
[1763576713679,0.00219803,89182.0,89181.0,0.00073267]
[1763576713878,0.02823414,89182.0,89181.0,0.00073267]
[1763576714175,0.13835999,89182.0,89181.0,0.00073267]
[1763576714574,0.13835999,89182.0,89176.0,0.00016814]
[1763576714774,0.08649794,89181.0,89180.0,0.0129]
[1763576714976,0.08865781,89181.0,89180.0,0.0129]
[1763576715177,0.1137793,89181.0,89180.0,0.0129]
[1763576715380,0.1137793,89181.0,89176.0,0.00016814]
[1763576715680,0.08874319,89181.0,89176.0,0.00016814]
[1763576715880,0.08874319,89181.0,89176.0,0.00116814]
[1763576716079,0.08874319,89181.0,89176.0,0.00190081]
[1763576716279,0.02834297,89181.0,89176.0,0.00190081]
[1763576716582,0.10916,89180.0,89176.0,0.00190081]
[1763576716785,0.00219803,89177.0,89176.0,0.00190081]
[1763576716973,0.00219803,89177.0,89176.0,0.00116814]
[1763576717172,0.00370697,89177.0,89176.0,0.00116814]
[1763576717577,0.00370697,89177.0,89176.0,0.00016814]
[1763576718482,0.00370697,89177.0,89167.0,0.0129]
[1763576718684,0.06034706,89172.0,89160.0,0.0129]
[1763576718878,0.00219803,89167.0,89160.0,0.0129]
[1763576719079,0.11139803,89167.0,89166.0,0.04366305]
[1763576719279,0.11391347,89167.0,89166.0,0.02192038]
[1763576719479,0.11391347,89167.0,89166.0,0.02265305]
[1763576719676,0.11391347,89167.0,89166.0,0.04366305]
[1763576719879,0.00471347,89167.0,89166.0,0.04366305]
[1763576720880,0.00251544,89167.0,89166.0,0.04366305]
[1763576721187,0.03872001,89170.0,89166.0,0.40101305]
[1763576721379,0.00372001,89170.0,89169.0,0.04265]
[1763576721585,1e-08,89170.0,89169.0,0.04338267]
[1763576722987,0.0392,89175.0,89174.0,0.04265]
[1763576723276,0.0392,89175.0,89174.0,0.04338267]
[1763576723677,0.04139803,89175.0,89174.0,0.04338267]
[1763576724673,0.04021314,89188.0,89187.0,0.04265]
[1763576724875,0.00016814,89193.0,89192.0,0.04265]
[1763576725079,0.00016814,89193.0,89192.0,0.04484803]
[1763576725475,0.04021314,89201.0,89200.0,0.04598]
[1763576725681,0.04021314,89213.0,89212.0,0.04598]
[1763576725879,0.07628,89219.0,89218.0,0.04598]
[1763576726189,0.1203,89219.0,89218.0,0.00219803]
[1763576726989,0.07628,89219.0,89218.0,0.04817803]
[1763576727184,0.10239339,89219.0,89218.0,0.04817803]
[1763576728482,0.00016814,89227.0,89218.0,0.04817803]
[1763576728483,0.00016814,89227.0,89226.0,0.04598]
[1763576728674,0.02627701,89227.0,89226.0,0.04817803]
[1763576730076,0.04734701,89227.0,89226.0,0.04817803]
[1763576730488,0.07029701,89227.0,89226.0,0.00219803]
[1763576730788,0.02627701,89227.0,89226.0,0.04817803]
[1763576731592,0.02627701,89227.0,89226.0,0.00219803]
[1763576731593,0.07029701,89227.0,89226.0,0.00219803]
[1763576731775,0.07029701,89227.0,89226.0,0.04727803]
[1763576731975,0.02627701,89227.0,89226.0,0.04727803]
[1763576732181,0.04944701,89227.0,89226.0,0.04727803]
[1763576732591,0.07251701,89227.0,89226.0,0.04727803]
[1763576732786,0.07351701,89227.0,89226.0,0.02512803]
[1763576733089,0.05044701,89227.0,89226.0,0.04724803]
[1763576733387,0.0504162,89227.0,89226.0,0.04724803]
[1763576733583,0.00116814,89227.0,89226.0,0.04724803]
[1763576734181,0.04640814,89227.0,89226.0,0.04724803]
[1763576734486,0.04524,89211.0,89210.0,0.00016814]
[1763576734685,0.15436,89211.0,89170.0,0.21244107]
[1763576734893,0.15436,89211.0,89166.0,0.00028038]
[1763576734894,0.21244107,89200.0,89185.0,0.00219803]
[1763576735286,0.01379,89208.0,89199.0,0.04505]
[1763576735485,0.01379,89220.0,89217.0,0.0229]
[1763576735789,0.01379,89220.0,89193.0,0.01272]
[1763576735790,0.04524,89220.0,89219.0,0.00219803]
[1763576736092,0.12291,89219.0,89193.0,0.01272]
[1763576736289,0.12291,89219.0,89194.0,0.00219803]
[1763576736290,0.02582202,89218.0,89194.0,0.00219803]
[1763576736491,0.02582202,89217.0,89194.0,0.00219803]
[1763576736681,0.12291,89219.0,89194.0,0.00219803]
[1763576736682,0.02582202,89216.0,89194.0,0.00219803]
[1763576736887,0.02582202,89215.0,89194.0,0.00219803]
[1763576737189,0.12291,89219.0,89198.0,0.1122027]
[1763576737387,0.02581936,89218.0,89199.0,0.00219803]
[1763576737590,0.02581936,89217.0,89199.0,0.00219803]
[1763576737788,0.02581936,89216.0,89199.0,0.00219803]
[1763576737988,0.02581936,89215.0,89199.0,0.00219803]
[1763576738189,0.12291,89219.0,89199.0,0.00219803]
[1763576738390,0.02581772,89218.0,89199.0,0.00219803]
[1763576738581,0.02581772,89217.0,89199.0,0.00219803]
[1763576738782,0.02581772,89216.0,89199.0,0.00219803]
[1763576738987,0.02581772,89215.0,89199.0,0.00219803]
[1763576739183,0.02217,89200.0,89199.0,0.02509803]
[1763576739588,0.02217,89200.0,89199.0,0.04724803]
[1763576739789,0.00016814,89208.0,89199.0,0.04724803]
[1763576741095,0.00016814,89208.0,89207.0,0.0229]
[1763576741395,0.04540814,89208.0,89207.0,0.00219803]
[1763576741894,0.04540814,89208.0,89180.0,0.22534107]
[1763576742100,0.05919814,89208.0,89181.0,0.00219803]
[1763576742304,0.02580265,89207.0,89182.0,0.1122233]
[1763576742497,0.05919814,89208.0,89207.0,0.0229]
[1763576742802,0.14395814,89208.0,89207.0,0.00219803]
[1763576743295,0.04540814,89208.0,89207.0,0.04724803]
[1763576743498,0.13137814,89208.0,89207.0,0.04724803]
[1763576743796,0.10920814,89208.0,89207.0,0.04724803]
[1763576746705,0.15444814,89208.0,89207.0,0.04724803]
[1763576746902,0.10920814,89208.0,89207.0,0.04724803]
[1763576747103,0.00016814,89208.0,89207.0,0.04724803]
[1763576747700,0.04540814,89208.0,89207.0,0.04724803]
[1763576747903,0.00016814,89208.0,89207.0,0.04724803]
[1763576748402,0.04768,89221.0,89220.0,0.04505]
[1763576748605,0.13255209,89221.0,89220.0,0.00219803]
[1763576748903,0.13255209,89221.0,89190.0,0.1122122]
[1763576749099,0.02584209,89220.0,89197.0,0.00219803]
[1763576749504,0.04540814,89217.0,89216.0,0.04505]
[1763576749701,0.07125023,89217.0,89216.0,0.02509803]
[1763576750096,0.07125023,89217.0,89216.0,0.00219803]
[1763576750302,0.07125023,89217.0,89200.0,0.04521814]
[1763576750303,0.04524,89201.0,89200.0,0.04521814]
[1763576750512,0.02217,89201.0,89200.0,0.04741617]
[1763576750712,0.01379,89210.0,89200.0,0.04741617]
[1763576750915,0.02588485,89209.0,89200.0,0.04741617]
[1763576751122,0.07112485,89208.0,89207.0,0.04505]
[1763576751311,0.04805485,89208.0,89207.0,0.04724803]
[1763576751516,0.07112485,89208.0,89207.0,0.04724803]
[1763576752224,0.02588485,89208.0,89207.0,0.04724803]
[1763576753727,0.04805485,89208.0,89207.0,0.04724803]
[1763576754227,0.07112485,89208.0,89207.0,0.02509803]
[1763576754413,0.07112485,89208.0,89207.0,0.00219803]
[1763576755118,0.07112485,89208.0,89207.0,0.04724803]
[1763576756518,0.07112485,89208.0,89207.0,0.00219803]
[1763576759124,0.04524,89201.0,89200.0,0.00016814]
[1763576759323,0.07112485,89201.0,89200.0,0.00016814]
[1763576759834,0.01379,89200.0,89160.0,0.0129]
[1763576760126,0.04524,89177.0,89176.0,0.00219803]
[1763576760322,0.04524,89177.0,89144.0,0.01272]
[1763576760323,0.04524,89167.0,89144.0,0.01272]
[1763576760527,0.01379,89166.0,89132.0,0.1122851]
[1763576760730,0.01379,89166.0,89130.0,0.27483265]
[1763576760731,0.04035144,89160.0,89144.0,0.00219803]
[1763576760931,0.04524,89145.0,89144.0,0.00219803]
[1763576761122,0.07112485,89145.0,89144.0,0.04724803]
[1763576761321,0.03343448,89145.0,89144.0,0.04724803]
[1763576761620,0.00754963,89145.0,89144.0,0.04724803]
[1763576762020,0.00754963,89145.0,89144.0,0.04824803]
[1763576762227,0.04434,89145.0,89144.0,0.00319803]
[1763576762625,0.04434,89145.0,89144.0,0.04679803]
[1763576762626,0.07779033,89145.0,89144.0,0.04679803]
[1763576762931,0.07779033,89145.0,89144.0,0.04779803]
[1763576763130,0.00754963,89145.0,89144.0,0.04779803]
[1763576763430,0.03029963,89145.0,89144.0,0.04779803]
[1763576763732,0.00754963,89145.0,89144.0,0.04779803]
[1763576764926,0.04492,89145.0,89144.0,0.00319803]
[1763576765127,0.04492,89145.0,89144.0,0.001]
[1763576765329,0.05246963,89145.0,89144.0,0.00319803]
[1763576765535,0.05246963,89145.0,89144.0,0.04779803]
[1763576766030,0.05246963,89145.0,89144.0,0.00319803]
[1763576766536,0.00754963,89145.0,89144.0,0.04779803]
[1763576769327,0.05246963,89145.0,89144.0,0.04779803]
[1763576769529,0.04492,89145.0,89144.0,0.04779803]
[1763576769833,0.04492,89145.0,89144.0,0.00319803]
[1763576769834,0.05246963,89145.0,89144.0,0.00319803]
[1763576770633,0.05246963,89145.0,89144.0,0.001]
[1763576770823,0.05246963,89145.0,89118.0,0.49422421]
[1763576771024,0.04492,89144.0,89118.0,0.49422421]
[1763576771334,0.06051906,89144.0,89143.0,0.02469069]
[1763576771528,0.03834906,89144.0,89143.0,0.04691069]
[1763576772126,0.03834906,89144.0,89143.0,0.04791069]
[1763576772526,0.01559906,89144.0,89143.0,0.04791069]
[1763576772837,0.00754963,89145.0,89144.0,0.0446]
[1763576773136,0.01358566,89147.0,89146.0,0.0446]
[1763576773328,0.05850566,89147.0,89146.0,0.04679803]
[1763576773534,0.04492,89147.0,89146.0,0.02457803]
[1763576773729,0.05850566,89147.0,89146.0,0.00219803]
[1763576774038,0.05850566,89147.0,89143.0,0.00111266]
[1763576774039,0.04492,89144.0,89143.0,0.00111266]
[1763576774232,0.04492,89144.0,89143.0,0.00011266]
[1763576774432,0.05448303,89144.0,89143.0,0.00231069]
[1763576774632,0.05448303,89144.0,89143.0,0.00011266]
[1763576774822,0.05448303,89144.0,89111.0,0.0129]
[1763576774823,0.01351,89141.0,89126.0,0.0448805]
[1763576775132,0.1024,89156.0,89139.0,0.0446]
[1763576775133,0.02365404,89140.0,89139.0,0.0446]
[1763576775334,0.13593024,89140.0,89139.0,0.04679803]
[1763576775537,0.04492,89140.0,89139.0,0.00219803]
[1763576775728,0.17641581,89140.0,89139.0,0.00219803]
[1763576776128,0.06413961,89140.0,89139.0,0.04679803]
[1763576776437,0.06313961,89140.0,89139.0,0.00219803]
[1763576776624,0.06313961,89140.0,89126.0,0.0002805]
[1763576776831,0.1122863,89132.0,89127.0,0.00219803]
[1763576777228,0.01812191,89131.0,89130.0,0.02238]
[1763576777435,0.01712191,89131.0,89130.0,0.04679803]
[1763576777634,0.12940941,89131.0,89130.0,0.04679803]
[1763576777837,0.1350375,89131.0,89130.0,0.04679803]
[1763576778028,0.1350275,89139.0,89138.0,0.02238]
[1763576778233,0.1571975,89139.0,89138.0,0.00219803]
[1763576778432,0.1707213,89128.0,89127.0,0.001]
[1763576778735,0.18179788,89128.0,89127.0,0.001]
[1763576779137,0.18179788,89128.0,89127.0,0.00319803]
[1763576779343,0.18179788,89128.0,89127.0,0.001]
[1763576779542,0.18193704,89128.0,89126.0,0.0002805]
[1763576779732,0.04492,89107.0,89086.0,0.00028063]
[1763576779929,0.00013376,89106.0,89090.0,0.00219803]
[1763576780227,0.05703523,89106.0,89095.0,0.1123326]
[1763576780431,0.04492,89096.0,89095.0,0.00219803]
[1763576780635,0.1123306,89097.0,89086.0,0.00028063]
[1763576780636,0.04492,89089.0,89086.0,0.00028063]
[1763576780838,0.05852272,89089.0,89086.0,0.00028063]
[1763576781038,0.00714794,89089.0,89088.0,0.04692308]
[1763576781539,0.00714794,89089.0,89088.0,0.15926478]
[1763576782037,0.02176,89121.0,89106.0,0.0446]
[1763576782240,0.04508835,89107.0,89106.0,0.00219803]
[1763576782631,0.0974461,89107.0,89106.0,0.02457803]
[1763576782837,0.0974461,89107.0,89106.0,0.13689703]
[1763576782838,0.09749254,89107.0,89106.0,0.13689703]
[1763576783144,0.20981034,89107.0,89106.0,0.00219803]
[1763576784031,0.01351,89102.0,89088.0,0.04472505]
[1763576784237,0.04492,89092.0,89091.0,0.00219803]
[1763576784536,0.04844751,89092.0,89091.0,0.00219803]
[1763576784746,0.02627751,89092.0,89091.0,0.04679803]
[1763576784931,0.04844751,89092.0,89091.0,0.04679803]
[1763576785132,0.00352751,89092.0,89091.0,0.04679803]
[1763576785333,0.00021479,89107.0,89106.0,0.02238]
[1763576785536,0.00021479,89107.0,89106.0,0.04656803]
[1763576785946,0.09746254,89107.0,89106.0,0.00219803]
[1763576787144,0.09746254,89107.0,89106.0,0.02457803]
[1763576787446,0.09746254,89107.0,89106.0,0.00219803]
[1763576788445,0.05257254,89107.0,89106.0,0.04656803]
[1763576788745,0.1122928,89127.0,89113.0,0.112309]
[1763576789045,0.02294,89127.0,89126.0,0.04656803]
[1763576789447,0.07080235,89127.0,89126.0,0.04656803]
[1763576789641,0.1030134,89127.0,89104.0,1.0]
[1763576789848,0.04489,89108.0,89107.0,0.00016835]
[1763576790053,0.04489,89108.0,89107.0,0.00236638]
[1763576790245,0.1352503,89113.0,89112.0,0.02238]
[1763576790442,0.1572003,89113.0,89112.0,0.02457803]
[1763576791039,0.04489,89113.0,89112.0,0.00219803]
[1763576791235,0.1572065,89108.0,89107.0,0.00016835]
[1763576791436,0.1831456,89108.0,89107.0,0.00236638]
[1763576791651,0.18818301,89108.0,89107.0,0.00236638]
[1763576792447,0.05391651,89108.0,89107.0,0.04729638]
[1763576792850,0.07590651,89108.0,89107.0,0.00236638]
[1763576793239,0.07590651,89108.0,89107.0,0.04638638]
[1763576793644,0.07590651,89108.0,89107.0,0.00236638]
[1763576794547,0.04523,89105.0,89104.0,1.0]
[1763576794854,0.1205046,89105.0,89104.0,0.99239908]
[1763576795252,0.18100261,89105.0,89104.0,0.67298108]
[1763576795450,0.1205046,89105.0,89104.0,0.67298108]
[1763576795750,0.5205046,89105.0,89104.0,0.67298108]
[1763576796148,0.60877704,89105.0,89104.0,0.67298108]
[1763576796355,0.20877704,89105.0,89104.0,0.67298108]
[1763576796551,0.77782557,89105.0,89104.0,0.67298108]
[1763576796749,0.77781462,89105.0,89104.0,0.67298108]
[1763576796949,0.31777704,89105.0,89104.0,0.67517911]
[1763576797252,0.31777704,89105.0,89104.0,0.67298108]
[1763576797452,0.20877704,89105.0,89104.0,0.67517911]
[1763576797654,0.35784855,89105.0,89104.0,0.67298108]
[1763576797850,0.71781704,89105.0,89104.0,0.67298108]
[1763576798456,0.71781704,89105.0,89104.0,0.64068638]
[1763576798840,0.71781704,89105.0,89104.0,0.57551438]
[1763576799054,0.71781704,89105.0,89104.0,0.53447998]
[1763576799259,0.71781704,89105.0,89104.0,0.45844558]
[1763576799749,0.71781704,89105.0,89104.0,0.43212628]
[1763576799954,0.71781704,89105.0,89104.0,0.42335318]
[1763576800155,0.71781704,89105.0,89104.0,0.32763273]
[1763576800357,0.71781704,89105.0,89104.0,0.20155]
[1763576800650,0.71781704,89105.0,89088.0,0.00012505]
[1763576800651,0.67358704,89105.0,89088.0,0.00012505]
[1763576800851,0.08003174,89093.0,89051.0,0.1123878]
[1763576801046,0.06002253,89089.0,89086.0,0.00247866]
[1763576801250,0.03999807,89087.0,89086.0,0.00247866]
[1763576801454,0.06593717,89087.0,89086.0,0.00247866]